fUSD/lending_fUSD_20260427
["ID","MTS","AMOUNT","RATE_DAILY","PERIOD"]
[421243861,1777287092915,-500.0,0.00034246,120]
[421243862,1777287092924,-500.0,0.00034246,120]
[421243863,1777287092933,-500.0,0.00034246,120]
[421243864,1777287092943,-1408.68,0.00034246,120]
[421243865,1777287092953,-714.81,0.00034246,120]
[421243866,1777287092963,-1779.59,0.00034246,120]
[421243867,1777287092972,-500.0,0.00034246,120]
[421243868,1777287092981,-667.82,0.00034246,120]
[421243869,1777287092991,-5381.05,0.00034246,120]
[421243870,1777287093000,-922.62,0.00034246,120]
[421243871,1777287093009,-625.44,0.00034246,5]
[421243872,1777287093018,-500.0,0.00034246,120]
[421243873,1777287093028,-1690.78,0.00034246,120]
[421243874,1777287093037,-2035.1,0.00034246,120]
[421243875,1777287093046,-674.61,0.00034246,120]
[421243876,1777287093055,-500.0,0.00034246,120]
[421243877,1777287093064,-500.0,0.00034246,120]
[421243878,1777287093075,-1164.41,0.00034246,120]
[421243879,1777287093084,-1082.08,0.00034246,120]
[421243880,1777287093093,-500.0,0.00034246,120]
[421243881,1777287093102,-998.96,0.00034246,120]
[421243882,1777287093111,-1043.04,0.00034246,120]
[421243883,1777287093120,-784.08,0.00034246,120]
[421243884,1777287093129,-1079.64,0.00034246,120]
[421243885,1777287093139,-1143.94,0.00034246,120]
[421243886,1777287093147,-500.0,0.00034246,120]
[421243887,1777287093156,-1451.57,0.00034246,120]
[421243888,1777287093166,-500.0,0.00034246,120]
[421243889,1777287093176,-500.0,0.00034246,120]
[421243890,1777287093186,-819.21,0.00034246,120]
[421243891,1777287093195,-1138.56,0.00034246,120]
[421243892,1777287093205,-601.09,0.00034246,120]
[421243893,1777287093214,-4201.7,0.00034246,120]
[421243894,1777287093224,-996.55,0.00034246,120]
[421243895,1777287093234,-1047.55,0.00034246,120]
[421243896,1777287093244,-541.91,0.00034246,120]
[421243897,1777287093253,-500.0,0.00034246,120]
[421243898,1777287093263,-500.0,0.00034246,120]
[421243899,1777287093273,-500.0,0.00034246,120]
[421243900,1777287093283,-795.18,0.00034246,120]
[421243901,1777287093293,-1162.36,0.00034246,120]
[421243902,1777287093302,-500.0,0.00034246,120]
[421243903,1777287093311,-500.0,0.00034246,120]
[421243904,1777287093321,-845.1,0.00034246,120]
[421243905,1777287093330,-1487.38,0.00034246,120]
[421243906,1777287093340,-500.0,0.00034246,120]
[421243907,1777287093350,-500.0,0.00034246,120]
[421243908,1777287093359,-500.0,0.00034246,120]
[421243909,1777287093369,-226.76222594,0.00034246,120]
[421243910,1777287093378,-500.0,0.00034246,120]
[421243911,1777287093388,-898.94,0.00034246,120]
[421243912,1777287093398,-500.0,0.00034246,120]
[421243913,1777287093408,-500.0,0.00034246,120]
[421243914,1777287093417,-500.0,0.00034246,120]
[421243915,1777287093426,-500.0,0.00034246,120]
[421243916,1777287093436,-500.62,0.00034246,120]
[421243917,1777287093445,-2636.09,0.00034246,120]
[421243918,1777287093454,-500.0,0.00034246,120]
[421243919,1777287093464,-1789.45,0.00034246,120]
[421243920,1777287093473,-500.0,0.00034246,120]
[421243921,1777287093482,-1085.3,0.00034246,120]
[421243922,1777287093491,-892.08,0.00034246,120]
[421243923,1777287093500,-500.0,0.00034246,120]
[421243924,1777287093510,-631.37,0.00034246,120]
[421243925,1777287093519,-581.62,0.00034246,120]
[421243926,1777287093529,-808.43,0.00034246,120]
[421243927,1777287093539,-741.62,0.00034246,120]
[421243928,1777287093548,-500.0,0.00034246,120]
[421243929,1777287093558,-500.0,0.00034246,120]
[421243930,1777287093567,-500.0,0.00034246,120]
[421243931,1777287093576,-500.0,0.00034246,120]
[421243932,1777287093586,-762.27,0.00034246,120]
[421243933,1777287093595,-1157.96,0.00034246,120]
[421243934,1777287093604,-633.93,0.00034246,120]
[421243935,1777287093613,-874.69,0.00034246,120]
[421243936,1777287093623,-500.0,0.00034246,120]
[421243937,1777287093632,-900.98,0.00034246,120]
[421243938,1777287093642,-500.0,0.00034246,120]
[421243939,1777287093651,-10204.73,0.00034246,120]
[421243940,1777287093660,-500.0,0.00034246,120]
[421243941,1777287093670,-1526.17,0.00034246,120]
[421243942,1777287093679,-500.0,0.00034246,120]
[421243943,1777287093689,-500.0,0.00034246,120]
[421243944,1777287093698,-891.6,0.00034246,120]
[421243945,1777287093708,-1367.53,0.00034246,120]
[421243946,1777287093717,-500.0,0.00034246,120]
[421243947,1777287093726,-683.25,0.00034246,120]
[421243948,1777287093736,-737.72,0.00034246,120]
[421243949,1777287093745,-500.0,0.00034246,120]
[421243950,1777287093754,-500.0,0.00034246,120]
[421243951,1777287093763,-10627.51,0.00034246,11]
[421243952,1777287093773,-500.0,0.00034246,120]
[421243953,1777287093783,-1508.4,0.00034246,120]
[421243954,1777287093792,-500.0,0.00034246,120]
[421243955,1777287093801,-944.61,0.00034246,120]
[421243956,1777287093811,-1952.39,0.00034246,120]
[421243957,1777287093820,-992.31,0.00034246,120]
[421243958,1777287093828,-644.32,0.00034246,120]
[421243959,1777287093838,-500.0,0.00034246,120]
[421243960,1777287093847,-855.86,0.00034246,120]
[421243961,1777287093856,-500.0,0.00034246,120]
[421243962,1777287093865,-938.15,0.00034246,120]
[421243963,1777287093875,-500.0,0.00034246,120]
[421243964,1777287093885,-976.87,0.00034246,120]
[421243965,1777287093894,-500.0,0.00034246,120]
[421243966,1777287093903,-500.0,0.00034246,120]
[421243967,1777287093912,-505.03,0.00034246,120]
[421243968,1777287093922,-889.14,0.00034246,120]
[421243969,1777287093932,-500.0,0.00034246,120]
[421243970,1777287093943,-816.73,0.00034246,120]
[421243971,1777287093952,-624.72,0.00034246,120]
[421243972,1777287093961,-9821.09,0.00034246,14]
[421243973,1777287093970,-523.03,0.00034246,120]
[421243974,1777287093979,-2650.84,0.00034246,2]
[421243975,1777287093989,-500.0,0.00034246,120]
[421243976,1777287093998,-822.98,0.00034246,120]
[421243977,1777287094008,-729.37,0.00034246,120]
[421243978,1777287094017,-1000.0,0.00034246,120]
[421243979,1777287094027,-500.0,0.00034246,120]
[421243980,1777287094036,-1044.79,0.00034246,120]
[421243981,1777287094046,-2033.75,0.00034246,120]
[421243982,1777287094057,-500.0,0.00034246,120]
[421243983,1777287094067,-2315.34,0.00034246,120]
[421243984,1777287094077,-957.71,0.00034246,120]
[421243985,1777287094088,-651.78,0.00034246,120]
[421243986,1777287094098,-500.0,0.00034246,120]
[421243987,1777287094108,-1144.22,0.00034246,120]
[421243988,1777287094117,-872.94,0.00034246,120]
[421243989,1777287094126,-500.0,0.00034246,120]
[421243990,1777287094136,-500.0,0.00034246,120]
[421243991,1777287094145,-905.69,0.00034246,120]
[421243992,1777287094155,-659.77,0.00034246,120]
[421243993,1777287094164,-500.0,0.00034246,120]
[421243994,1777287094173,-572.93,0.00034246,120]
[421243995,1777287094183,-526.89,0.00034246,120]
[421243996,1777287094192,-500.0,0.00034246,30]
[421243997,1777287094202,-2198.73,0.00034246,31]
[421243998,1777287094211,-936.24,0.00034246,120]
[421243999,1777287094220,-7236.62,0.00034246,120]
[421244000,1777287094229,-1500.0,0.00034246,120]
[421244001,1777287094238,-601.2,0.00034246,120]
[421244002,1777287094247,-1282.75,0.00034246,120]
[421244003,1777287094256,-500.0,0.00034246,120]
[421244004,1777287094265,-500.0,0.00034246,120]
[421244005,1777287094275,-500.0,0.00034246,120]
[421244006,1777287094284,-451.0,0.00034247,30]
[421244007,1777287094294,-159.0,0.00034247,30]
[421244008,1777287094303,-153.0,0.00034247,30]
[421244009,1777287094312,-1182.0,0.00034247,30]
[421244010,1777287094322,-159.0,0.00034248,30]
[421244011,1777287094331,-158.0,0.00034248,30]
[421244012,1777287094340,-219.48921421,0.00034285,120]
[421244013,1777287094350,-6009.96,0.000343,7]
[421244014,1777287094359,-521.50674032,0.000343,120]
[421244015,1777287094368,-164.0,0.00034325,2]
[421244016,1777287094378,-873.15,0.00034326,30]
[421244017,1777287094387,-633.89,0.00034326,30]
[421244018,1777287094396,-269.36,0.00034326,30]
[421244019,1777287094405,-187.31,0.00034326,30]
[421244020,1777287094414,-4509.25,0.00034326,30]
[421244021,1777287094424,-151.0,0.00034377,2]
[421244022,1777287094433,-219.48921421,0.0003438,120]
[421244023,1777287094442,-1011.34,0.000344,14]
[421244024,1777287094451,-843.389,0.00034405,38]
[421244025,1777287094460,-500.0,0.00034466,120]
[421244026,1777287094470,-219.48921421,0.00034474,120]
[421244027,1777287094480,-1011.34,0.000345,14]
[421244028,1777287094490,-405.40415438,0.0003452,31]
[421244029,1777287094499,-40919.8,0.0003452,120]
[421244030,1777287094508,-5510.884336,0.0003452,120]
[421244031,1777287094517,-406.931409,0.0003452,120]
[421244032,1777287094526,-325.762595,0.0003452,120]
[421244033,1777287094534,-342.964341,0.0003452,120]
[421244034,1777287094543,-2698.281126,0.0003452,120]
[421244035,1777287094553,-500.0,0.0003452,120]
[421244036,1777287094562,-500.0,0.0003452,30]
[421244037,1777287094571,-500.0,0.0003452,90]
[421244038,1777287094581,-500.0,0.0003452,120]
[421244039,1777287094591,-500.0,0.0003452,120]
[421244040,1777287094600,-500.0,0.0003452,120]
[421244041,1777287094609,-500.0,0.0003452,120]
[421244042,1777287094619,-502.98041101,0.0003452,120]
[421244043,1777287094628,-448.54688012,0.0003452,120]
[421244044,1777287094637,-500.0,0.0003452,120]
[421244045,1777287094646,-500.0,0.0003452,120]
[421244046,1777287094655,-500.0,0.0003452,120]
[421244047,1777287094665,-500.0,0.0003452,120]
[421244048,1777287094675,-863.36,0.0003452,120]
[421244049,1777287094684,-500.0,0.0003452,2]
[421244050,1777287094693,-500.0,0.0003452,120]
[421244051,1777287094703,-599.06,0.0003452,120]
[421244052,1777287094712,-640.83,0.0003452,120]
[421244053,1777287094722,-500.0,0.0003452,120]
[421244054,1777287094731,-500.0,0.0003452,120]
[421244055,1777287094739,-500.0,0.0003452,120]
[421244056,1777287094749,-1211.95,0.0003452,120]
[421244057,1777287094758,-565.53,0.0003452,120]
[421244058,1777287094767,-500.0,0.0003452,120]
[421244059,1777287094776,-553.4,0.0003452,120]
[421244060,1777287094786,-715.07,0.0003452,120]
[421244061,1777287094795,-500.0,0.0003452,120]
[421244062,1777287094804,-500.0,0.0003452,120]
[421244063,1777287094813,-938.55,0.0003452,120]
[421244064,1777287094823,-1090.36,0.0003452,120]
[421244065,1777287094832,-634.95,0.0003452,120]
[421244066,1777287094841,-500.0,0.0003452,120]
[421244067,1777287094851,-500.0,0.0003452,120]
[421244068,1777287094860,-528.14,0.0003452,120]
[421244069,1777287094870,-618.11699288,0.0003452,120]
[421244070,1777287094879,-500.0,0.0003452,120]
[421244071,1777287094888,-1072.38,0.0003452,120]
[421244072,1777287094898,-1314.31,0.0003452,120]
[421244073,1777287094908,-703.47,0.0003452,120]
[421244074,1777287094917,-500.0,0.0003452,120]
[421244075,1777287094926,-500.0,0.0003452,120]
[421244076,1777287094936,-500.0,0.0003452,120]
[421244077,1777287094945,-500.0,0.0003452,120]
[421244078,1777287094954,-516.81,0.0003452,120]
[421244079,1777287094964,-500.0,0.0003452,30]
[421244080,1777287094973,-2357.31,0.0003452,120]
[421244081,1777287094982,-722.01,0.0003452,120]
[421244082,1777287094991,-500.0,0.0003452,120]
[421244083,1777287095000,-637.51768929,0.0003452,120]
[421244084,1777287095010,-500.0,0.0003452,120]
[421244085,1777287095019,-500.0,0.0003452,120]
[421244086,1777287095028,-500.0,0.0003452,120]
[421244087,1777287095038,-500.0,0.0003452,120]
[421244088,1777287095047,-1649.9,0.0003452,30]
[421244089,1777287095056,-527.75,0.0003452,120]
[421244090,1777287095066,-500.0,0.0003452,120]
[421244091,1777287095075,-500.0,0.0003452,120]
[421244092,1777287095085,-663.98,0.0003452,120]
[421244093,1777287095095,-752.81,0.0003452,120]
[421244094,1777287095104,-696.22,0.0003452,120]
[421244095,1777287095114,-500.0,0.0003452,120]
[421244096,1777287095124,-500.0,0.0003452,120]
[421244097,1777287095134,-1446.95,0.0003452,120]
[421244098,1777287095145,-964.96,0.0003452,120]
[421244099,1777287095155,-500.0,0.0003452,120]
[421244100,1777287095165,-500.0,0.0003452,120]
[421244101,1777287095175,-529.41,0.0003452,120]
[421244102,1777287095185,-500.0,0.0003452,120]
[421244103,1777287095194,-500.0,0.0003452,120]
[421244104,1777287095203,-500.0,0.0003452,120]
[421244105,1777287095213,-500.0,0.0003452,120]
[421244106,1777287095222,-1077.32,0.0003452,120]
[421244107,1777287095231,-1000.0,0.0003452,120]
[421244108,1777287095240,-765.4,0.0003452,120]
[421244109,1777287095250,-949.83,0.0003452,120]
[421244110,1777287095259,-599.76,0.0003452,120]
[421244111,1777287095268,-500.0,0.0003452,120]
[421244112,1777287095277,-500.0,0.0003452,120]
[421244113,1777287095286,-500.0,0.0003452,120]
[421244114,1777287095296,-314.49847191,0.0003452,120]
[421244115,1777287095306,-500.0,0.0003452,120]
[421244116,1777287095314,-812.99,0.0003452,120]
[421244117,1777287095324,-500.0,0.0003452,120]
[421244118,1777287095333,-1319.91,0.0003452,120]
[421244119,1777287095342,-559.35,0.0003452,120]
[421244120,1777287095351,-1706.39,0.0003452,120]
[421244121,1777287095360,-500.0,0.0003452,120]
[421244122,1777287095369,-500.0,0.0003452,120]
[421244123,1777287095379,-500.0,0.0003452,120]
[421244124,1777287095388,-500.0,0.0003452,120]
[421244125,1777287095398,-500.0,0.0003452,120]
[421244126,1777287095407,-668.63,0.0003452,120]
[421244127,1777287095416,-500.0,0.0003452,120]
[421244128,1777287095425,-1799.8,0.0003452,30]
[421244129,1777287095435,-2310.82,0.0003452,120]
[421244130,1777287095444,-500.0,0.0003452,120]
[421244131,1777287095453,-951.83,0.0003452,120]
[421244132,1777287095463,-500.0,0.0003452,120]
[421244133,1777287095472,-500.0,0.0003452,120]
[421244134,1777287095481,-500.0,0.0003452,120]
[421244135,1777287095491,-500.0,0.0003452,120]
[421244136,1777287095500,-500.0,0.0003452,120]
[421244137,1777287095510,-500.0,0.0003452,120]
[421244138,1777287095519,-500.0,0.0003452,120]
[421244139,1777287095528,-691.55,0.0003452,120]
[421244140,1777287095537,-500.0,0.0003452,120]
[421244141,1777287095547,-500.0,0.0003452,120]
[421244142,1777287095556,-822.42,0.0003452,120]
[421244143,1777287095565,-500.0,0.0003452,120]
[421244144,1777287095575,-690.22,0.0003452,120]
[421244145,1777287095584,-1041.51,0.0003452,120]
[421244146,1777287095593,-817.53,0.0003452,120]
[421244147,1777287095603,-500.0,0.0003452,120]
[421244148,1777287095612,-500.0,0.0003452,120]
[421244149,1777287095621,-500.0,0.0003452,120]
[421244150,1777287095630,-812.8,0.0003452,120]
[421244151,1777287095639,-500.0,0.0003452,120]
[421244152,1777287095648,-894.99,0.0003452,120]
[421244153,1777287095658,-1018.47,0.0003452,120]
[421244154,1777287095667,-500.0,0.0003452,120]
[421244155,1777287095677,-1560.45,0.0003452,10]
[421244156,1777287095686,-654.65,0.0003452,120]
[421244157,1777287095696,-542.84032436,0.0003452,120]
[421244158,1777287095706,-500.0,0.0003452,120]
[421244159,1777287095715,-770.15,0.0003452,120]
[421244160,1777287095724,-500.0,0.0003452,120]
[421244161,1777287095733,-747.23,0.0003452,120]
[421244162,1777287095743,-592.21,0.0003452,120]
[421244163,1777287095752,-1047.65,0.0003452,120]
[421244164,1777287095761,-500.0,0.0003452,120]
[421244165,1777287095771,-500.0,0.0003452,120]
[421244166,1777287095780,-500.0,0.0003452,120]
[421244167,1777287095790,-500.0,0.0003452,120]
[421244168,1777287095800,-548.93,0.0003452,120]
[421244169,1777287095808,-422.57119569,0.0003452,120]
[421244170,1777287095818,-500.0,0.0003452,120]
[421244171,1777287095827,-500.0,0.0003452,120]
[421244172,1777287095836,-500.0,0.0003452,120]
[421244173,1777287095845,-500.0,0.0003452,120]
[421244174,1777287095855,-1885.25,0.0003452,120]
[421244175,1777287095864,-500.0,0.0003452,120]
[421244176,1777287095873,-1242.85,0.0003452,120]
[421244177,1777287095883,-632.88,0.0003452,120]
[421244178,1777287095892,-810.82,0.0003452,120]
[421244179,1777287095901,-696.25,0.0003452,120]
[421244180,1777287095910,-500.0,0.0003452,120]
[421244181,1777287095919,-500.0,0.0003452,120]
[421244182,1777287095929,-500.0,0.0003452,120]
[421244183,1777287095938,-500.0,0.0003452,120]
[421244184,1777287095948,-500.0,0.0003452,120]
[421244185,1777287095957,-1579.01,0.0003452,120]
[421244186,1777287095966,-500.0,0.0003452,120]
[421244187,1777287095976,-601.37,0.0003452,120]
[421244188,1777287095986,-1456.44,0.0003452,120]
[421244189,1777287095996,-595.98,0.0003452,120]
[421244190,1777287096006,-1572.92,0.0003452,120]
[421244191,1777287096016,-500.0,0.0003452,120]
[421244192,1777287096027,-500.0,0.0003452,120]
[421244193,1777287096037,-1223.21,0.0003452,120]
[421244194,1777287096047,-500.0,0.0003452,120]
[421244195,1777287096057,-987.31,0.0003452,120]
[421244196,1777287096067,-500.0,0.0003452,120]
[421244197,1777287096077,-500.0,0.0003452,120]
[421244198,1777287096087,-685.94,0.0003452,120]
[421244199,1777287096098,-996.26,0.0003452,120]
[421244200,1777287096108,-511.75324592,0.0003452,120]
[421244201,1777287096118,-977.11,0.0003452,120]
[421244202,1777287096128,-1114.4,0.0003452,120]
[421244203,1777287096137,-922.87,0.0003452,120]
[421244204,1777287096147,-500.0,0.0003452,120]
[421244205,1777287096157,-694.64,0.0003452,120]
[421244206,1777287096166,-876.6,0.0003452,120]
[421244207,1777287096176,-1292.17,0.0003452,120]
[421244208,1777287096186,-500.0,0.0003452,120]
[421244209,1777287096195,-2804.65,0.0003452,120]
[421244210,1777287096205,-831.75,0.0003452,14]
[421244211,1777287096215,-500.0,0.0003452,120]
[421244212,1777287096225,-500.0,0.0003452,14]
[421244213,1777287096234,-695.08,0.0003452,120]
[421244214,1777287096243,-500.0,0.0003452,30]
[421244215,1777287096253,-975.03,0.0003452,120]
[421244216,1777287096263,-500.0,0.0003452,120]
[421244217,1777287096273,-500.0,0.0003452,120]
[421244218,1777287096283,-500.0,0.0003452,120]
[421244219,1777287096292,-667.25,0.0003452,120]
[421244220,1777287096302,-500.0,0.0003452,120]
[421244221,1777287096312,-500.0,0.0003452,120]
[421244222,1777287096445,-514.22,0.0003452,120]
[421244223,1777287096455,-500.0,0.0003452,120]
[421244224,1777287096464,-500.0,0.0003452,120]
[421244225,1777287096473,-809.84,0.0003452,120]
[421244226,1777287096483,-500.0,0.0003452,120]
[421244227,1777287096492,-808.81,0.0003452,120]
[421244228,1777287096502,-656.37,0.0003452,120]
[421244229,1777287096512,-924.49,0.0003452,120]
[421244230,1777287096521,-1754.83,0.0003452,120]
[421244231,1777287096530,-816.58,0.0003452,120]
[421244232,1777287096540,-1699.99,0.0003452,120]
[421244233,1777287096549,-963.43,0.0003452,120]
[421244234,1777287096558,-988.21,0.0003452,120]
[421244235,1777287096568,-500.0,0.0003452,120]
[421244236,1777287096577,-803.53,0.0003452,120]
[421244237,1777287096587,-983.75,0.0003452,120]
[421244238,1777287096597,-806.48,0.0003452,120]
[421244239,1777287096607,-1721.56,0.0003452,120]
[421244240,1777287096616,-899.89,0.0003452,120]
[421244241,1777287096625,-1666.52,0.0003452,120]
[421244242,1777287096635,-567.97605876,0.0003452,120]
[421244243,1777287096645,-903.54,0.0003452,120]
[421244244,1777287096654,-640.16,0.0003452,120]
[421244245,1777287096663,-2805.42,0.0003452,120]
[421244246,1777287096673,-500.0,0.0003452,120]
[421244247,1777287096682,-500.0,0.0003452,120]
[421244248,1777287096692,-1658.74,0.0003452,120]
[421244249,1777287096701,-507.17,0.0003452,120]
[421244250,1777287096711,-500.0,0.0003452,120]
[421244251,1777287096721,-760.12,0.0003452,120]
[421244252,1777287096730,-1131.48,0.0003452,120]
[421244253,1777287096739,-500.0,0.0003452,120]
[421244254,1777287096748,-500.0,0.0003452,120]
[421244255,1777287096758,-1275.35,0.0003452,120]
[421244256,1777287096767,-1746.47,0.0003452,120]
[421244257,1777287096776,-1186.63,0.0003452,120]
[421244258,1777287096786,-726.02,0.0003452,120]
[421244259,1777287096795,-857.8,0.0003452,120]
[421244260,1777287096805,-500.0,0.0003452,120]
[421244261,1777287096814,-942.29,0.0003452,120]
[421244262,1777287096824,-315.24703936,0.0003452,120]
[421244263,1777287096833,-500.0,0.0003452,90]
[421244264,1777287096842,-888.77,0.0003452,120]
[421244265,1777287096852,-615.52,0.0003452,120]
[421244266,1777287096861,-500.0,0.0003452,120]
[421244267,1777287096870,-691.21,0.0003452,120]
[421244268,1777287096880,-1549.89,0.0003452,120]
[421244269,1777287096889,-597.1,0.0003452,120]
[421244270,1777287096898,-500.0,0.0003452,120]
[421244271,1777287096908,-516.45,0.0003452,120]
[421244272,1777287096918,-646.3,0.0003452,120]
[421244273,1777287096927,-996.25,0.0003452,120]
[421244274,1777287096936,-729.86,0.0003452,120]
[421244275,1777287096945,-500.0,0.0003452,120]
[421244276,1777287096955,-862.2,0.0003452,120]
[421244277,1777287096964,-902.68,0.0003452,120]
[421244278,1777287096974,-500.0,0.0003452,120]
[421244279,1777287096984,-932.95,0.0003452,120]
[421244280,1777287096993,-501.5,0.0003452,120]
[421244281,1777287097002,-932.07,0.0003452,120]
[421244282,1777287097012,-500.0,0.0003452,120]
[421244283,1777287097021,-946.6,0.0003452,120]
[421244284,1777287097031,-638.61,0.0003452,120]
[421244285,1777287097041,-500.0,0.0003452,120]
[421244286,1777287097051,-1014.18,0.0003452,120]
[421244287,1777287097061,-500.0,0.0003452,120]
[421244288,1777287097071,-714.89,0.0003452,120]
[421244289,1777287097080,-1988.17,0.0003452,120]
[421244290,1777287097090,-563.81,0.0003452,120]
[421244291,1777287097100,-500.0,0.0003452,120]
[421244292,1777287097110,-500.0,0.0003452,120]
[421244293,1777287097120,-500.0,0.0003452,7]
[421244294,1777287097129,-500.0,0.0003452,120]
[421244295,1777287097139,-885.91,0.0003452,120]
[421244296,1777287097149,-1640.34,0.0003452,120]
[421244297,1777287097159,-500.0,0.0003452,120]
[421244298,1777287097168,-891.92,0.0003452,120]
[421244299,1777287097178,-669.56,0.0003452,120]
[421244300,1777287097187,-500.0,0.0003452,120]
[421244301,1777287097195,-1390.78,0.0003452,120]
[421244302,1777287097204,-500.0,0.0003452,120]
[421244303,1777287097214,-500.0,0.0003452,120]
[421244304,1777287097224,-500.0,0.0003452,120]
[421244305,1777287097233,-500.0,0.0003452,120]
[421244306,1777287097243,-500.0,0.0003452,60]
[421244307,1777287097253,-668.1,0.0003452,120]
[421244308,1777287097263,-172.75069816,0.0003452,120]
[421244309,1777287097273,-500.0,0.0003452,120]
[421244310,1777287097283,-563.59222814,0.0003452,120]
[421244311,1777287097292,-500.0,0.0003452,120]
[421244312,1777287097302,-660.18,0.0003452,120]
[421244313,1777287097311,-691.69,0.0003452,120]
[421244314,1777287097322,-500.0,0.0003452,120]
[421244315,1777287097334,-691.03,0.0003452,120]
[421244316,1777287097344,-500.0,0.0003452,120]
[421244317,1777287097354,-618.59,0.0003452,30]
[421244318,1777287097363,-953.58,0.0003452,120]
[421244319,1777287097372,-922.63,0.0003452,120]
[421244320,1777287097382,-4917.9,0.0003452,120]
[421244321,1777287097391,-525.11,0.0003452,120]
[421244322,1777287097400,-551.36,0.0003452,120]
[421244323,1777287097410,-500.0,0.0003452,120]
[421244324,1777287097419,-840.29,0.0003452,120]
[421244325,1777287097429,-500.0,0.0003452,120]
[421244326,1777287097439,-739.88,0.0003452,120]
[421244327,1777287097449,-919.84,0.0003452,120]
[421244328,1777287097459,-1800.54,0.0003452,120]
[421244329,1777287097469,-500.0,0.0003452,120]
[421244330,1777287097479,-1344.25,0.0003452,120]
[421244331,1777287097490,-500.0,0.0003452,30]
[421244332,1777287097499,-500.0,0.0003452,120]
[421244333,1777287097509,-500.0,0.0003452,120]
[421244334,1777287097520,-916.78,0.0003452,120]
[421244335,1777287097530,-500.0,0.0003452,60]
[421244336,1777287097539,-1345.97,0.0003452,120]
[421244337,1777287097549,-1078.03,0.0003452,120]
[421244338,1777287097559,-500.0,0.0003452,120]
[421244339,1777287097568,-500.0,0.0003452,14]
[421244340,1777287097578,-947.63,0.0003452,120]
[421244341,1777287097588,-549.91,0.0003452,120]
[421244342,1777287097598,-500.0,0.0003452,120]
[421244343,1777287097608,-500.0,0.0003452,120]
[421244344,1777287097617,-748.29,0.0003452,120]
[421244345,1777287097627,-500.0,0.0003452,120]
[421244346,1777287097636,-1742.02,0.0003452,120]
[421244347,1777287097645,-608.09025947,0.0003452,12]
[421244348,1777287097655,-980.13,0.0003452,120]
[421244349,1777287097664,-547.89,0.0003452,120]
[421244350,1777287097674,-500.0,0.0003452,120]
[421244351,1777287097684,-500.0,0.0003452,120]
[421244352,1777287097693,-808.71,0.0003452,120]
[421244353,1777287097704,-697.0,0.0003452,120]
[421244354,1777287097713,-500.0,0.0003452,120]
[421244355,1777287097723,-698.74,0.0003452,120]
[421244356,1777287097732,-500.0,0.0003452,120]
[421244357,1777287097743,-861.18,0.0003452,120]
[421244358,1777287097752,-500.0,0.0003452,120]
[421244359,1777287097762,-599.72,0.0003452,120]
[421244360,1777287097771,-971.15,0.0003452,120]